[Event "Gibraltar Junior Intl U16 2019"]
[Site "Caleta"]
[Date "2019.08.19"]
[Round "6.20"]
[White "Rayner, Hugo"]
[Black "Dharmasena, Gavith"]
[Result "0-1"]
[ECO "C54"]
[WhiteElo "1448"]
[BlackElo "1585"]
[Annotator "NA RC"]
[PlyCount "38"]
[EventDate "2019.08.16"]
[EventType "swiss"]
[EventCountry "GGB"]
[SourceTitle "playchess.com"]
[Source "ChessBase"]
[SourceQuality "1"]
[TimeControl "6600+10"]

1. e4 {[%emt 0:00:00]} e5 {[%emt 0:00:00]} 2. Nf3 {[%emt 0:00:00]} Nc6 {[%emt 0:00:00]} 3. Bc4 {[%emt 0:00:02]} Bc5 {[%emt 0:00:03]} 4. d3 {[%emt 0:00:08]} Nf6 {[%emt 0:00:04]} 5. O-O {[%emt 0:00:09]} O-O {[%emt 0:00:06]} 6. c3 {[%emt 0:00:12]} d6 {[%emt 0:00:07]} 7. h3 {[%emt 0:00:08]} h6 {[%emt 0:00:03]} 8. Bb3 {[%emt 0:00:18]} Be6 {[%emt 0:03:22]} 9. Bc2 {[%emt 0:00:13]} a6 {[%emt 0:00:11]} 10. Nbd2 {[%emt 0:00:14]} Ba7 {[%emt 0:00:05]} 11. Re1 {[%emt 0:00:07]} Nh5 {[%emt 0:00:19]} 12. Nf1 {[%emt 0:00:09]} Qf6 {[%emt 0:00:36]} 13. Be3 {[%emt 0:00:28]} Nf4 {[%emt 0:02:57]} 14. Bxf4 {[%emt 0:02:21]} Qxf4 {[%emt 0:02:27]} 15. Qd2 {[%emt 0:00:49]} Qf6 {[%emt 0:00:12]} 16. Rad1 {[%emt 0:01:25]} Bxh3 {[%emt 0:00:08]} 17. gxh3 {[%emt 0:02:55]} Qxf3 {[%emt 0:00:22]} 18. Ng3 {[%emt 0:00:30]} Qxg3+ {[%emt 0:00:06]} 19. Kh1 {[%emt 0:00:33]} Bxf2 {[%emt 0:01:14] Kg1} 0-1

[Event "Gibraltar Junior Intl U16 2019"]
[Site "Caleta"]
[Date "2019.08.19"]
[Round "6.21"]
[White "Miller, Max C"]
[Black "Dhanwani, Aryan"]
[Result "1-0"]
[ECO "D04"]
[WhiteElo "1563"]
[BlackElo "1319"]
[Annotator "NA RC"]
[PlyCount "91"]
[EventDate "2019.08.16"]
[EventType "swiss"]
[EventCountry "GGB"]
[SourceTitle "playchess.com"]
[Source "ChessBase"]
[SourceQuality "1"]
[TimeControl "6600+10"]

1. Nf3 {[%emt 0:00:00]} c6 {[%emt 0:00:35]} 2. d4 {[%emt 0:00:16]} d5 {[%emt 0:00:07]} 3. e3 {[%emt 0:00:04]} Nf6 {[%emt 0:00:26]} 4. Bd3 {[%emt 0:00:27]} Bg4 {[%emt 0:00:39]} 5. Nbd2 {[%emt 0:00:06]} Nbd7 {[%emt 0:00:46]} 6. b3 {[%emt 0:00:26]} e6 {[%emt 0:00:38]} 7. Bb2 {[%emt 0:00:52]} Bd6 {[%emt 0:02:35]} 8. c4 {[%emt 0:00:59]} Bb4 {[%emt 0:05:02]} 9. Be2 {[%emt 0:01:19]} Qa5 {[%emt 0:01:58]} 10. a3 {[%emt 0:02:52]} Bxf3 {[%emt 0:05:51]} 11. axb4 {[%emt 0:01:12]} Bxe2 {[%emt 0:00:23]} 12. bxa5 {[%emt 0:00:26]} Bxd1 {[%emt 0:00:12]} 13. Kxd1 {[%emt 0:00:16]} O-O {[%emt 0:05:39]} 14. Ke2 {[%emt 0:00:59]} b6 {[%emt 0:01:01]} 15. Rhc1 {[%emt 0:05:11]} Rfc8 {[%emt 0:02:20]} 16. axb6 {[%emt 0:06:45]} axb6 {[%emt 0:00:07]} 17. Ba3 {[%emt 0:00:59]} c5 {[%emt 0:06:27]} 18. dxc5 {[%emt 0:01:36]} bxc5 {[%emt 0:00:36]} 19. cxd5 {[%emt 0:02:16]} exd5 {[%emt 0:00:22]} 20. b4 {[%emt 0:07:32]} c4 {[%emt 0:06:20]} 21. Bb2 {[%emt 0:00:38]} Rxa1 {[%emt 0:04:34]} 22. Bxa1 {[%emt 0:00:12]} Rb8 {[%emt 0:02:11]} 23. Bc3 {[%emt 0:00:34]} Ra8 {[%emt 0:07:56]} 24. Ra1 {[%emt 0:01:31]} Rxa1 {[%emt 0:00:54]} 25. Bxa1 {[%emt 0:00:00]} Kf8 {[%emt 0:00:34]} 26. Bd4 {[%emt 0:02:07]} Ke8 {[%emt 0:05:16]} 27. f3 {[%emt 0:00:40]} g6 {[%emt 0:02:18]} 28. Nb1 {[%emt 0:00:36]} Kd8 {[%emt 0:01:07]} 29. Nc3 {[%emt 0:00:07]} Kc7 {[%emt 0:02:09]} 30. h3 {[%emt 0:04:47]} Kd6 {[%emt 0:05:52]} 31. Nb5+ {[%emt 0:03:28]} Kc6 {[%emt 0:00:43]} 32. Na7+ {[%emt 0:00:10]} Kb7 {[%emt 0:00:49]} 33. b5 {[%emt 0:00:26]} Nb8 {[%emt 0:05:37]} 34. Bxf6 {[%emt 0:02:57]} Kxa7 {[%emt 0:00:49]} 35. Bd4+ {[%emt 0:00:02]} Kb7 {[%emt 0:01:01]} 36. e4 {[%emt 0:00:03]} dxe4 {[%emt 0:00:48]} 37. fxe4 {[%emt 0:00:01]} Nd7 {[%emt 0:00:46]} 38. Kd2 {[%emt 0:00:12]} Nf8 {[%emt 0:02:36]} 39. Kc3 {[%emt 0:01:50]} Ne6 {[%emt 0:00:50]} 40. Kxc4 {[%emt 0:00:43]} Nf4 {[%emt 0:00:51]} 41. g3 {[%emt 0:02:53]} Nxh3 {[%emt 0:04:32]} 42. Be3 {[%emt 0:00:09]} h6 {[%emt 0:00:18]} 43. e5 {[%emt 0:01:10]} Ng5 {[%emt 0:05:14]} 44. Bxg5 {[%emt 0:01:06]} hxg5 {[%emt 0:00:04]} 45. Kc5 {[%emt 0:00:53]} f5 {[%emt 0:01:36]} 46. exf6 {[%emt 0:00:36]} 1-0

[Event "Gibraltar Junior Intl U16 2019"]
[Site "Caleta"]
[Date "2019.08.19"]
[Round "6.22"]
[White "Lv, Jason"]
[Black "Harbinson, Alec Ryan"]
[Result "1-0"]
[ECO "D02"]
[WhiteElo "1532"]
[BlackElo "1118"]
[Annotator "NA"]
[PlyCount "76"]
[EventDate "2019.08.16"]
[EventType "swiss"]
[EventCountry "GGB"]
[SourceTitle "playchess.com"]
[Source "ChessBase"]
[SourceQuality "1"]
[TimeControl "6600+10"]

1. d4 {[%emt 0:00:00]} Nf6 {[%emt 0:00:00]} 2. Nf3 {[%emt 0:00:00]} e6 {[%emt 0:00:09]} 3. Bf4 {[%emt 0:00:00]} d5 {[%emt 0:00:23]} 4. e3 {[%emt 0:00:17]} Nc6 {[%emt 0:00:23]} 5. c3 {[%emt 0:00:10]} Bd6 {[%emt 0:02:05]} 6. Nbd2 {[%emt 0:00:20]} O-O {[%emt 0:01:54]} 7. Bd3 {[%emt 0:00:37]} h6 {[%emt 0:01:43]} 8. Ne5 {[%emt 0:00:57]} Bxe5 {[%emt 0:06:21]} 9. dxe5 {[%emt 0:00:08]} Nd7 {[%emt 0:00:14]} 10. Nf3 {[%emt 0:00:14]} f6 {[%emt 0:00:44]} 11. exf6 {[%emt 0:08:50]} Nxf6 {[%emt 0:05:57]} 12. Qc2 {[%emt 0:04:57]} Qe7 {[%emt 0:08:14]} 13. Ne5 {[%emt 0:02:45]} Nxe5 {[%emt 0:03:10]} 14. Bxe5 {[%emt 0:00:02]} c6 {[%emt 0:00:56]} 15. c4 {[%emt 0:03:07]} Nd7 {[%emt 0:08:45]} 16. Bc3 {[%emt 0:03:04]} e5 {[%emt 0:07:48]} 17. cxd5 {[%emt 0:01:42]} cxd5 {[%emt 0:00:54]} 18. O-O-O {[%emt 0:00:38]} e4 {[%emt 0:05:18]} 19. Bf1 {[%emt 0:00:54]} Nb6 {[%emt 0:00:52]} 20. Kb1 {[%emt 0:02:17]} Be6 {[%emt 0:04:44]} 21. h3 {[%emt 0:06:45]} Rac8 {[%emt 0:03:04]} 22. Qd2 {[%emt 0:01:33]} Rfd8 {[%emt 0:03:03]} 23. Bd4 {[%emt 0:02:33]} Qd6 {[%emt 0:10:28]} 24. Be2 {[%emt 0:04:12]} Nc4 {[%emt 0:13:14]} 25. Bxc4 {[%emt 0:01:38]} dxc4 {[%emt 0:02:13]} 26. Qc3 {[%emt 0:02:15]} Qe7 {[%emt 0:02:47]} 27. Bxa7 {[%emt 0:00:53]} b5 {[%emt 0:00:26]} 28. Rxd8+ {[%emt 0:01:07]} Rxd8 {[%emt 0:00:34]} 29. Bd4 {[%emt 0:00:37]} b4 {[%emt 0:00:54]} 30. Qc2 {[%emt 0:01:13]} Qd7 {[%emt 0:01:21]} 31. g4 {[%emt 0:01:03]} Qb5 {[%emt 0:01:08]} 32. Qxe4 {[%emt 0:04:39]} Bd5 {[%emt 0:01:58]} 33. Qe5 {[%emt 0:00:26]} Qd7 {[%emt 0:00:45]} 34. Rc1 {[%emt 0:07:08]} Re8 {[%emt 0:01:48]} 35. Qh2 {[%emt 0:08:08]} Be4+ {[%emt 0:03:16]} 36. Ka1 {[%emt 0:00:50]} Qb5 {[%emt 0:04:03]} 37. Qc7 {[%emt 0:00:37]} Qb7 {[%emt 0:00:51]} 38. Qxb7 {[%emt 0:00:32]} Bxb7 {[%emt 0:00:01]} 1-0

[Event "Gibraltar Junior Intl U16 2019"]
[Site "Caleta"]
[Date "2019.08.19"]
[Round "6.23"]
[White "Popham, Sarah"]
[Black "Guerreiro, Jose Velho"]
[Result "0-1"]
[ECO "A05"]
[WhiteElo "1372"]
[BlackElo "1513"]
[Annotator "NA"]
[PlyCount "112"]
[EventDate "2019.08.16"]
[EventType "swiss"]
[EventCountry "GGB"]
[SourceTitle "playchess.com"]
[Source "ChessBase"]
[SourceQuality "1"]
[TimeControl "6600+10"]

1. Nf3 {[%emt 0:00:00]} c5 {[%emt 0:00:01]} 2. g3 {[%emt 0:00:02]} Nc6 {[%emt 0:00:04]} 3. Bg2 {[%emt 0:00:12]} g6 {[%emt 0:00:07]} 4. O-O {[%emt 0:00:28]} Bg7 {[%emt 0:00:03]} 5. c3 {[%emt 0:00:34]} Nf6 {[%emt 0:00:37]} 6. d3 {[%emt 0:00:30]} O-O {[%emt 0:00:16]} 7. Bf4 {[%emt 0:01:18]} d6 {[%emt 0:01:27]} 8. Qc1 {[%emt 0:00:47]} Re8 {[%emt 0:02:45]} 9. Bh6 {[%emt 0:03:09]} Bh8 {[%emt 0:00:45]} 10. Bg5 {[%emt 0:14:42]} Qc7 {[%emt 0:06:54]} 11. Nbd2 {[%emt 0:03:23]} b5 {[%emt 0:01:30]} 12. Re1 {[%emt 0:03:29]} Bb7 {[%emt 0:00:49]} 13. a3 {[%emt 0:05:36]} a5 {[%emt 0:02:13]} 14. d4 {[%emt 0:08:57]} Rac8 {[%emt 0:05:37]} 15. Bxf6 {[%emt 0:06:11]} Bxf6 {[%emt 0:00:27]} 16. dxc5 {[%emt 0:00:17]} dxc5 {[%emt 0:02:19]} 17. Ne4 {[%emt 0:00:34]} Ne5 {[%emt 0:01:04]} 18. Nxf6+ {[%emt 0:01:38]} exf6 {[%emt 0:00:16]} 19. Nxe5 {[%emt 0:02:48]} Rxe5 {[%emt 0:03:41]} 20. Qf4 {[%emt 0:06:10]} Bxg2 {[%emt 0:00:47]} 21. Kxg2 {[%emt 0:00:44]} Qe7 {[%emt 0:01:35]} 22. Qf3 {[%emt 0:01:21]} Rd8 {[%emt 0:02:12]} 23. Rad1 {[%emt 0:16:05]} Rxd1 {[%emt 0:01:16]} 24. Rxd1 {[%emt 0:01:58]} Rxe2 {[%emt 0:00:47]} 25. Rd3 {[%emt 0:09:21]} Kg7 {[%emt 0:05:41]} 26. Re3 {[%emt 0:01:47]} Rxe3 {[%emt 0:00:21]} 27. Qxe3 {[%emt 0:00:12]} Qd6 {[%emt 0:00:19]} 28. Qe2 {[%emt 0:00:35]} Qd5+ {[%emt 0:01:15]} 29. Kg1 {[%emt 0:01:19]} Qb3 {[%emt 0:00:58]} 30. h3 {[%emt 0:02:16]} a4 {[%emt 0:01:44]} 31. Qd2 {[%emt 0:05:05]} Qa2 {[%emt 0:03:30]} 32. Qc1 {[%emt 0:00:40]} Qd5 {[%emt 0:01:13]} 33. Qc2 {[%emt 0:01:05]} Qe6 {[%emt 0:01:17]} 34. Kh2 {[%emt 0:03:34]} Qe1 {[%emt 0:01:03]} 35. Kg2 {[%emt 0:00:13]} Qe5 {[%emt 0:00:23]} 36. Kh2 {[%emt 0:00:37]} Qd6 {[%emt 0:00:40]} 37. Qe2 {[%emt 0:00:37]} c4 {[%emt 0:00:47]} 38. Qc2 {[%emt 0:00:26]} Qd3 {[%emt 0:00:23]} 39. Qc1 {[%emt 0:00:51]} Qe2 {[%emt 0:00:17]} 40. Kg2 {[%emt 0:00:11]} h6 {[%emt 0:00:48]} 41. Qb1 {[%emt 0:01:13]} Qd2 {[%emt 0:00:42]} 42. Kf1 {[%emt 0:00:59]} h5 {[%emt 0:02:08]} 43. h4 {[%emt 0:00:58]} f5 {[%emt 0:00:57]} 44. Kg2 {[%emt 0:00:31]} f4 {[%emt 0:02:13]} 45. Qe4 {[%emt 0:03:25]} fxg3 {[%emt 0:02:41]} 46. Qd4+ {[%emt 0:00:10]} Qxd4 {[%emt 0:00:26]} 47. cxd4 {[%emt 0:00:02]} gxf2 {[%emt 0:00:36]} 48. Kxf2 {[%emt 0:00:01]} Kf6 {[%emt 0:00:09]} 49. Kf3 {[%emt 0:00:07]} Ke6 {[%emt 0:00:17]} 50. Ke4 {[%emt 0:00:34]} f6 {[%emt 0:00:17]} 51. d5+ {[%emt 0:00:08]} Kd6 {[%emt 0:00:15]} 52. Kd4 {[%emt 0:00:19]} g5 {[%emt 0:00:41]} 53. hxg5 {[%emt 0:00:05]} fxg5 {[%emt 0:00:05]} 54. Ke4 {[%emt 0:00:05]} h4 {[%emt 0:00:11]} 55. Kf3 {[%emt 0:00:03]} Kxd5 {[%emt 0:00:47]} 56. Kg4 {[%emt 0:00:04]} Kd4 {[%emt 0:00:11]} 0-1

[Event "Gibraltar Junior Intl U16 2019"]
[Site "Caleta"]
[Date "2019.08.19"]
[Round "6.24"]
[White "Guilfanov, Raphael"]
[Black "Gough, Theo"]
[Result "0-1"]
[ECO "D00"]
[WhiteElo "1493"]
[BlackElo "1474"]
[Annotator "NA RC"]
[PlyCount "114"]
[EventDate "2019.08.16"]
[EventType "swiss"]
[EventCountry "GGB"]
[SourceTitle "playchess.com"]
[Source "ChessBase"]
[SourceQuality "1"]
[TimeControl "6600+10"]

1. d4 {[%emt 0:00:00]} d5 {[%emt 0:00:11]} 2. Bf4 {[%emt 0:00:00]} Nf6 {[%emt 0:00:12]} 3. c3 {[%emt 0:00:09]} c5 {[%emt 0:00:06]} 4. Nd2 {[%emt 0:00:09]} Nc6 {[%emt 0:00:11]} 5. e3 {[%emt 0:00:14]} e6 {[%emt 0:00:30]} 6. Bd3 {[%emt 0:00:16]} c4 {[%emt 0:00:38]} 7. Bc2 {[%emt 0:00:21]} Be7 {[%emt 0:00:15]} 8. Ngf3 {[%emt 0:00:54]} Nh5 {[%emt 0:00:27]} 9. Bg3 {[%emt 0:00:37]} Bd7 {[%emt 0:00:14]} 10. Ne5 {[%emt 0:00:55]} Nxg3 {[%emt 0:02:56]} 11. hxg3 {[%emt 0:00:36]} g6 {[%emt 0:01:23]} 12. Nxg6 {[%emt 0:01:44]} fxg6 {[%emt 0:07:13]} 13. Bxg6+ {[%emt 0:00:16]} Kf8 {[%emt 0:00:08]} 14. Qh5 {[%emt 0:00:38]} Bf6 {[%emt 0:02:17]} 15. Qf3 {[%emt 0:03:50]} Be8 {[%emt 0:02:16]} 16. Rxh7 {[%emt 0:04:31]} Rxh7 {[%emt 0:03:35]} 17. Bxh7 {[%emt 0:00:13]} Qe7 {[%emt 0:01:12]} 18. Bc2 {[%emt 0:02:00]} Qf7 {[%emt 0:08:57]} 19. O-O-O {[%emt 0:01:24]} Bg7 {[%emt 0:02:00]} 20. Qg4 {[%emt 0:02:45]} Ke7 {[%emt 0:04:49]} 21. Rh1 {[%emt 0:01:14]} Bd7 {[%emt 0:02:44]} 22. Rh7 {[%emt 0:01:01]} Rg8 {[%emt 0:00:48]} 23. e4 {[%emt 0:03:49]} Kf8 {[%emt 0:04:18]} 24. Qe2 {[%emt 0:03:01]} Rh8 {[%emt 0:02:53]} 25. Rxh8+ {[%emt 0:01:59]} Bxh8 {[%emt 0:00:02]} 26. exd5 {[%emt 0:00:13]} exd5 {[%emt 0:00:12]} 27. Qe1 {[%emt 0:03:22]} Bf6 {[%emt 0:04:21]} 28. Nf3 {[%emt 0:02:05]} b5 {[%emt 0:01:47]} 29. Nh4 {[%emt 0:00:41]} Bxh4 {[%emt 0:01:25]} 30. gxh4 {[%emt 0:00:28]} Qf4+ {[%emt 0:00:11]} 31. Kb1 {[%emt 0:00:41]} Qxh4 {[%emt 0:00:16]} 32. b3 {[%emt 0:00:18]} Qg5 {[%emt 0:01:11]} 33. Qh1 {[%emt 0:01:39]} Qf6 {[%emt 0:01:51]} 34. g3 {[%emt 0:03:29]} Ne7 {[%emt 0:03:47]} 35. Bd1 {[%emt 0:03:52]} Bf5+ {[%emt 0:03:44]} 36. Ka1 {[%emt 0:02:20]} Qg5 {[%emt 0:01:51]} 37. Qh8+ {[%emt 0:02:28]} Ng8 {[%emt 0:00:48]} 38. f4 {[%emt 0:00:47]} Qxg3 {[%emt 0:01:09]} 39. Kb2 {[%emt 0:00:40]} Qxf4 {[%emt 0:01:25]} 40. Bh5 {[%emt 0:00:58]} b4 {[%emt 0:04:06]} 41. cxb4 {[%emt 0:00:43]} Qd2+ {[%emt 0:00:06]} 42. Ka3 {[%emt 0:00:09]} Qc1+ {[%emt 0:00:08]} 43. Ka4 {[%emt 0:00:18]} Bd7+ {[%emt 0:01:51]} 44. b5 {[%emt 0:00:17]} c3 {[%emt 0:04:53]} 45. Qe5 {[%emt 0:00:12]} Qh6 {[%emt 0:09:53]} 46. Qb8+ {[%emt 0:05:13]} Kg7 {[%emt 0:05:12]} 47. Qe5+ {[%emt 0:01:02]} Nf6 {[%emt 0:01:10]} 48. Qe7+ {[%emt 0:00:52]} Kh8 {[%emt 0:00:13]} 49. Qd8+ {[%emt 0:00:30]} Kh7 {[%emt 0:00:41]} 50. Qe7+ {[%emt 0:01:07]} Qg7 {[%emt 0:00:29]} 51. Bf7 {[%emt 0:00:01]} Be8 {[%emt 0:01:25]} 52. Ka5 {[%emt 0:01:01]} Qxf7 {[%emt 0:00:57]} 53. Qc5 {[%emt 0:00:16]} Ne4 {[%emt 0:00:37]} 54. Qa3 {[%emt 0:00:36]} Qc7+ {[%emt 0:01:01]} 55. Kb4 {[%emt 0:00:09]} Qd6+ {[%emt 0:00:40]} 56. Ka4 {[%emt 0:00:20]} Qxa3+ {[%emt 0:00:12]} 57. Kxa3 {[%emt 0:00:05]} Bxb5 {[%emt 0:00:01]} 0-1

[Event "Gibraltar Junior Intl U16 2019"]
[Site "Caleta"]
[Date "2019.08.19"]
[Round "6.25"]
[White "Moughtin-Leay, John"]
[Black "Gaspar Lopez, Rocio"]
[Result "1/2-1/2"]
[ECO "D45"]
[WhiteElo "1215"]
[BlackElo "1367"]
[Annotator "NA"]
[PlyCount "86"]
[EventDate "2019.08.16"]
[EventType "swiss"]
[EventCountry "GGB"]
[SourceTitle "playchess.com"]
[Source "ChessBase"]
[SourceQuality "1"]
[TimeControl "6600+10"]

1. d4 {[%emt 0:00:00]} d5 {[%emt 0:00:00]} 2. c4 {[%emt 0:00:00]} e6 {[%emt 0:00:00]} 3. Nc3 {[%emt 0:00:07]} c6 {[%emt 0:00:00]} 4. c5 {[%emt 0:00:07]} Nf6 {[%emt 0:00:36]} 5. Nf3 {[%emt 0:00:07]} Nbd7 {[%emt 0:00:57]} 6. e3 {[%emt 0:00:31]} Be7 {[%emt 0:00:42]} 7. Bd3 {[%emt 0:00:09]} Nf8 {[%emt 0:00:15]} 8. O-O {[%emt 0:00:48]} Ng6 {[%emt 0:00:02]} 9. e4 {[%emt 0:01:00]} dxe4 {[%emt 0:02:54]} 10. Nxe4 {[%emt 0:00:10]} O-O {[%emt 0:01:30]} 11. Be3 {[%emt 0:01:29]} Nd5 {[%emt 0:03:32]} 12. Nc3 {[%emt 0:00:39]} Nf6 {[%emt 0:03:40]} 13. Qc2 {[%emt 0:08:30]} Qc7 {[%emt 0:02:45]} 14. h3 {[%emt 0:00:27]} Rd8 {[%emt 0:02:07]} 15. Rad1 {[%emt 0:00:21]} Bd7 {[%emt 0:09:30]} 16. Rfe1 {[%emt 0:00:35]} Re8 {[%emt 0:02:44]} 17. b4 {[%emt 0:02:00]} a6 {[%emt 0:09:15]} 18. Nd2 {[%emt 0:04:16]} Rad8 {[%emt 0:04:57]} 19. Nc4 {[%emt 0:01:59]} Bc8 {[%emt 0:00:35]} 20. Nb6 {[%emt 0:01:08]} Bf8 {[%emt 0:00:32]} 21. Bc4 {[%emt 0:02:11]} Qb8 {[%emt 0:02:51]} 22. g3 {[%emt 0:04:04]} h6 {[%emt 0:00:12]} 23. Kg2 {[%emt 0:02:46]} Qa7 {[%emt 0:04:14]} 24. Qb1 {[%emt 0:13:43]} Be7 {[%emt 0:07:10]} 25. Bd3 {[%emt 0:04:10]} Nh8 {[%emt 0:02:43]} 26. Bf4 {[%emt 0:00:35]} Rf8 {[%emt 0:00:55]} 27. Bc4 {[%emt 0:07:40]} Rde8 {[%emt 0:01:47]} 28. Bc7 {[%emt 0:00:22]} g5 {[%emt 0:03:15]} 29. Be5 {[%emt 0:00:21]} Ng6 {[%emt 0:01:45]} 30. f4 {[%emt 0:01:34]} Nxe5 {[%emt 0:03:27]} 31. fxe5 {[%emt 0:00:57]} Nh5 {[%emt 0:10:01]} 32. Ne4 {[%emt 0:02:58]} Ng7 {[%emt 0:03:46]} 33. g4 {[%emt 0:01:02]} Qb8 {[%emt 0:00:51]} 34. Nf6+ {[%emt 0:00:49]} Bxf6 {[%emt 0:03:20]} 35. exf6 {[%emt 0:00:09]} Nf5 {[%emt 0:00:22]} 36. gxf5 {[%emt 0:00:26]} exf5 {[%emt 0:00:02]} 37. Qd3 {[%emt 0:01:14]} Qc7 {[%emt 0:01:22]} 38. d5 {[%emt 0:03:41]} cxd5 {[%emt 0:01:10]} 39. Nxd5 {[%emt 0:00:24]} Qc6 {[%emt 0:02:04]} 40. Kf2 {[%emt 0:00:40]} Kh7 {[%emt 0:00:57]} 41. Rxe8 {[%emt 0:00:51]} Rxe8 {[%emt 0:00:08]} 42. Ne7 {[%emt 0:00:09]} Qc7 {[%emt 0:00:51]} 43. Nxf5 {[%emt 0:10:24]} Qf4+ {[%emt 0:03:50]} 1/2-1/2